Cogmind - Beta 17 @@@ ROGUE MODE // 2026.06.29 @ 01:17:50 Player: rz Result: Destroyed by D-53 Grenadier with Mini Grenade Launcher Performance ------------- Evolutions (0) 0 Regions Visited (2) 400 Robots Destroyed (31) 155 Value Destroyed (515) 515 Prototype IDs (0) 0 Alien Tech Used (0) 0 Bonus (0) 0 TOTAL SCORE: 1070 Bonus ------- None Cogmind --------- Core Integrity 0/250 Matter 290/300 Energy 86/160 System Corruption 0% Temperature Cool (6) Movement Rolling (110) Ox2 Location -10/Mines Parts ------- > --- POWER (1) -------- Light Nuclear Core > --- PROPULSION (2) --- Wheel Wheel > --- UTILITY (2) ------ Improved Heat Sink High-capacity Storage Unit > --- WEAPON (2) ------- Medium Laser Particle Gun > --- INVENTORY (20) --- Ion Engine Light Ion Engine Light Treads Aluminum Leg Aluminum Leg Aluminum Leg Wheel Signal Interpreter Seismic Detector Light Armor Plating Medium Laser Medium Laser Small Laser Grenade Launcher Datajack Peak State ------------ > --- POWER ------------ Light Nuclear Core > --- PROPULSION ------- Wheel Wheel > --- UTILITY ---------- Improved Heat Sink High-capacity Storage Unit > --- WEAPON ----------- Medium Laser Particle Gun > --- INVENTORY -------- Ion Engine Light Ion Engine Light Treads Aluminum Leg Aluminum Leg Aluminum Leg Wheel Signal Interpreter Seismic Detector Light Armor Plating Medium Laser Medium Laser Small Laser Grenade Launcher Datajack [Rating: 13] Favorites ----------- Power Ion Engine Engine Ion Engine Power Core Light Nuclear Core Propulsion Light Treads Treads Light Treads Wheel Wheel Utility Seismic Detector Device Seismic Detector Storage High-capacity Storage Unit Weapon Medium Laser Energy Gun Medium Laser Ballistic Gun Assault Rifle Launcher Grenade Launcher Build | -11 -10 -10 ------- Run | Yrd Mat Min Slots Evolved . | . . . Power . | . . . Propulsion . | . . . Utility . | . . . Weapon . | . . . Parts Attached 19 | 8 6 5 Power 2 | 1 . 1 Engine 1 | 1 . . Core 1 | . . 1 Reactor . | . . . Propulsion 4 | 2 . 2 Treads 2 | 2 . . Leg . | . . . Wheel 2 | . . 2 Hover . | . . . Flight . | . . . Utility 7 | 3 3 1 Device 4 | 2 1 1 Storage 3 | 1 2 . Processor . | . . . Hackware . | . . . Protection . | . . . Artifact . | . . . Weapon 6 | 2 3 1 Energy Gun 3 | . 2 1 Energy Cannon . | . . . Ballistic Gun 2 | 2 . . Ballistic Cannon . | . . . Launcher 1 | . 1 . Special Weapon . | . . . Impact Weapon . | . . . Slashing Weapon . | . . . Piercing Weapon . | . . . Special Melee Weapon . | . . . Unidentified Prototypes . | . . . Parts Lost 3 | . 1 2 Power 1 | . . 1 Propulsion 1 | . 1 . Utility 1 | . . 1 Weapon . | . . . Highest Loss Streak 1 | . 1 1 To Critical Strikes . | . . . Average Backups 8 | . 8 14 Power 1 | . 1 3 Propulsion 1 | . 1 4 Utility 2 | . 2 3 Weapon 2 | . 2 3 Tool/Special . | . . . Unused Backups 9 | . . 9 Power 2 | . . 2 Propulsion 2 | . . 2 Utility 2 | . . 2 Weapon 2 | . . 2 Tool/Special 1 | . . 1 Average Slot Usage (%) 96 | . 97 87 Engine 14 | . 14 14 Treads 24 | . 25 8 Device 13 | . 14 10 Storage 14 | . 14 14 Energy Gun 22 | . 22 24 Ballistic Gun 4 | . 5 . Peak Build Rating 13 | 9 8 13 Average Rating 7 | 6 7 8 On Entrance 4 | . 7 7 Avg Prop Armor Cover (%) . | . . . Naked Turns . | . . . Heaviest Build 51 | 14 51 51 Greatest Support 40 | 40 40 20 Greatest Overweight (x) 2 | . 2 2 Average Overweight (x) . | . . 2 Largest Inventory Capacity 20 | 8 20 20 Average Capacity 13 | 7 13 20 Most Carried 16 | . 15 16 Average Carried 8 | . 8 14 Final Capacity 20 | 8 20 20 Final Carried 15 | . 15 15 Class Distribution -------------------- 100% | Mutant Dominant Class ---------------- Mutant | -10/Materials Mutant | -10/Mines Resources | -11 -10 -10 ----------- Run | Yrd Mat Min Matter Collected 562 | 220 282 60 Remotely . | . . . Salvage Created 813 | 128 422 263 Parts 64 | 12 37 15 Haulers Intercepted 1 | . 1 . Recyclers Shooed 1 | . . 1 Parts Field Recycled . | . . . Retrieved Matter . | . . . Parts Self-Destructed . | . . . Prevented . | . . . Parts Restored . | . . . Kills | -11 -10 -10 ------- Run | Yrd Mat Min Combat Hostiles Destroyed 18 | . 14 4 Guns 9 | . 8 1 AOE 8 | . 6 2 Classes Destroyed 9 | 2 7 . Worker 3 | . 2 1 Builder 2 | . 2 . Tunneler 3 | 3 . . Hauler 1 | . 1 . Recycler 2 | 1 . 1 Operator 1 | . 1 . Watcher 1 | . 1 . Swarmer 9 | . 9 . Grunt 9 | . 5 4 Best Kill Streak 7 | 3 7 4 Combat Bots Only 5 | . 5 2 Max Kills in Single Turn 2 | 1 2 2 Gunslinging 1 | . 1 . Exploded 2 | . 2 2 Melee . | . . . Uniques/NPCs Destroyed . | . . . Combat | -11 -10 -10 -------- Run | Yrd Mat Min Hostile Shots Fired 98 | . 80 18 Missed 26 | . 21 5 Hits 72 | . 59 13 Projectile 72 | . 59 13 AOE 4 | . . 4 Critical Strikes 2 | . 2 . Damage Taken 770 | . 517 253 Core 263 | . 155 108 Absorbed by Shields . | . . . Core Remaining (%) 100 | 100 . . Volleys Fired 64 | 12 38 14 Largest 2 | 2 2 2 Hottest 115 | 40 100 115 Shots Fired 128 | 24 76 28 Gun 120 | 24 69 27 Cannon . | . . . Launcher 8 | . 7 1 Special . | . . . Kinetic 36 | 24 12 . Thermal 84 | . 57 27 Explosive 8 | . 7 1 Electromagnetic . | . . . Robot Hit Streak 9 | 8 5 9 Robot Miss Streak 8 | 2 8 1 Penetration Max . | . . . Secondary Targets 1 | . 1 . Max Gunslinging Chain 1 | . 1 . Shots Hit Robots 72 | 17 33 22 Core Hits 50 | 7 33 10 Critical Kills . | . . . Critical Parts Destroyed . | . . . Critical Strikes 5 | . 4 1 Burn 5 | . 4 1 Melee Attacks . | . . . Impact . | . . . Slashing . | . . . Piercing . | . . . Sneak Attacks . | . . . Combat Hostiles . | . . . Follow-up Attacks . | . . . Damage Inflicted 1435 | 194 853 388 Guns 856 | 194 373 289 Cannons . | . . . Explosions 579 | . 480 99 Melee . | . . . Ramming . | . . . Kinetic 231 | 194 37 . Thermal 625 | . 336 289 Explosive 579 | . 480 99 Electromagnetic . | . . . Impact . | . . . Slashing . | . . . Piercing . | . . . Highest Corruption . | . . . Average Corruption . | . . . Corruption Purged . | . . . Corruption Blocked . | . . . Overload Shots . | . . . Overflow Damage . | . . . Projectiles . | . . . Explosions . | . . . Melee . | . . . Knockbacks . | . . . Impact . | . . . Kinetic . | . . . Secondary . | . . . Self-Inflicted Damage 8 | . 8 . Shots 1 | . 1 . Rammed . | . . . Targets Rammed . | . . . Kicked . | . . . Crushed . | . . . Highest Temperature 307 | . 296 307 Average Temperature 90 | . 72 147 Received Heat Transfer 165 | . 102 63 Siege Activations . | . . . Martial Activations . | . . . Shielding Activations . | . . . Robots Disrupted . | . . . Combat Hostiles . | . . . Robots Corrupted . | . . . Combat Hostiles . | . . . Parts Fried . | . . . Impact Corruptions . | . . . Robots Melted 1 | . . 1 Combat Hostiles 1 | . . 1 Parts Melted 10 | . 2 8 Heat Transferred 2183 | . 1295 888 Parts Sabotaged . | . . . Parts Stolen . | . . . Parts Stripped . | . . . Power Chain Reactions . | . . . Alert | -11 -10 -10 ------- Run | Yrd Mat Min Maximum Alert Level . | . . . Low Security (%) 100 | 100 100 100 Level 1 . | . . . Level 2 . | . . . Level 3 . | . . . Level 4 . | . . . Level 5 . | . . . High Security . | . . . Max Security . | . . . Peak Influence 163 | 15 163 136 Initial 46 | . . 46 Average 59 | 1 66 84 Influence Increases 618 | 20 478 120 Destroy 0b10 Robot/C 360 | . 280 80 Destroy 0b10 Robot/NC 65 | 20 35 10 Destroy Leader 74 | . 54 20 Successful Hack 12 | . 12 . Destroy Structure 47 | . 37 10 Lose Combat Pursuer 60 | . 60 . Influence Decreases 502 | 20 358 124 Entered New Map 74 | . . 74 Time Decay 398 | 20 348 30 Lost Part 30 | . 10 20 Squads Dispatched 1 | . 1 . Investigation . | . . . Extermination . | . . . Reinforcement 1 | . 1 . Assault . | . . . Garrison . | . . . Intercept . | . . . Searches Triggered . | . . . Construction Impeded . | . . . Haulers Reinforced . | . . . Active Scanning Responses . | . . . Cargo Convoy Interrupts . | . . . Stealth | -11 -10 -10 --------- Run | Yrd Mat Min Distress Signals 3 | . 3 . Communications Jammed . | . . . Distress Signals . | . . . Times Spotted 34 | . 28 6 Peak Tracking Total 9 | . 9 2 Tactical Retreats 3 | . 3 . Traps | -11 -10 -10 ------- Run | Yrd Mat Min Traps Triggered . | . . . Indirectly . | . . . Trap Hack Attempts . | . . . Triggered . | . . . Disarmed . | . . . Reprogrammed . | . . . Reused . | . . . Traps Extracted . | . . . Installed . | . . . Triggered . | . . . Machines | -11 -10 -10 ---------- Run | Yrd Mat Min Machines Disabled . | . . . Max in Single Turn . | . . . Machines Repaired . | . . . Machines Dismantled . | . . . Machines Sabotaged . | . . . Overloaded Fab Kills . | . . . Hacking | -11 -10 -10 --------- Run | Yrd Mat Min Machines Accessed 2 | . 2 . Terminals 1 | . 1 . Fabricators . | . . . Repair Stations . | . . . Recycling Units 1 | . 1 . Scanalyzers . | . . . Garrison Access . | . . . Total Hacks 6 | . 6 . Successful 4 | . 4 . Failed 2 | . 2 . Catastrophic 1 | . 1 . Database Lockouts . | . . . Manual 2 | . 2 . Terminals 4 | . 4 . Fabricators . | . . . Repair Stations . | . . . Recycling Units 2 | . 2 . Scanalyzers . | . . . Garrison Access . | . . . Terminal Hacks 3 | . 3 . Record 1 | . 1 . Branch Access Points 1 | . 1 . Zone Layout 1 | . 1 . Fabricator Hacks . | . . . Repair Station Hacks . | . . . Recycling Unit Hacks 1 | . 1 . Retrieve Components 1 | . 1 . Scanalyzer . | . . . Garrison Access Hacks . | . . . Unauthorized Hacks . | . . . Terminals . | . . . Fabricators . | . . . Repair Stations . | . . . Recycling Units . | . . . Scanalyzers . | . . . Garrison Access . | . . . Data Cores Recovered 1 | . 1 . Used . | . . . Hacking Detections 2 | . 2 . Full Trace Events . | . . . Feedback Events . | . . . Feedback Blocked . | . . . Robot Schematics Acquired . | . . . Robots Built . | . . . Authchips . | . . . Time . | . . . Total Robot Build Rating . | . . . Part Schematics Acquired . | . . . Parts Built . | . . . Authchips . | . . . Time . | . . . Total Part Build Rating . | . . . Part Studies Acquired . | . . . Parts Repaired . | . . . Time . | . . . Parts Recycled . | . . . Recycled Matter . | . . . Retrieved Matter . | . . . Retrieved Components . | . . . Parts Scanalyzed . | . . . Part Schematics Acquired . | . . . Parts Damaged . | . . . Bothacking | -11 -10 -10 ------------ Run | Yrd Mat Min Used RIF Installer . | . . . Robots Hacked . | . . . Non-combat . | . . . Combat . | . . . Robot Hacks Applied . | . . . Relay Couplers Released . | . . . Fabnet Peak Effective % . | . . . Robots Rewired . | . . . Allies Hacked . | . . . Hacks Repelled . | . . . Allies | -11 -10 -10 -------- Run | Yrd Mat Min Total Allies . | . . . Largest Group . | . . . Highest-Rated Group . | . . . Highest-Rated Ally . | . . . Total Orders . | . . . Ally Attacks . | . . . Total Damage . | . . . Kills . | . . . Allies Corrupted . | . . . Allies Melted . | . . . Intel | -11 -10 -10 ------- Run | Yrd Mat Min Active Infowar (turns) 897 | 59 838 . Terrain 53 | 53 . . Seismic 844 | 6 838 . Robot Analysis Total . | . . . Derelict Logs Recovered . | . . . Drone Launches . | . . . Drone Recoveries . | . . . Exploration | -11 -10 -10 ------------- Run | Yrd Mat Min Turns Passed 1328 | 161 1103 64 Spaces Moved 572 | 54 506 12 Core 4 | 4 . . Treads 556 | 50 506 . Legs . | . . . Wheels 12 | . . 12 Hover . | . . . Flight . | . . . Fastest Speed 50 | 50 160 110 Average Speed 185 | 151 190 110 Slowest Speed 320 | 160 320 110 Overloaded Moves . | . . . Propulsion Burnouts . | . . . Robots Hopped . | . . . Potential Cave-ins . | . . . Cave-ins Triggered . | . . . Exploration Rate (%) 27 | 3 74 4 Regions Visited 2 Branch Regions 1 Pre-discovered Areas . | . . . Known Exits Taken 1 | . 1 . Unknown Exits Taken 1 | 1 . . Scrap Searched . | . . . Spaces Dug . | . . . Terrain Destroyed 58 | . 48 10 Melee . | . . . Projectile . | . . . AOE 58 | . 48 10 Terrain Rammed . | . . . Walls Destroyed . | . . . Machines Disabled . | . . . Actions | -11 -10 -10 --------- Run | Yrd Mat Min Total 715 | 108 572 35 Wait 34 | 34 . . Move 570 | 53 505 12 Hop . | . . . Pick Up 19 | . 16 3 Fast Attach 9 | 8 1 . Attach 3 | . . 3 Detach 1 | . 1 . Swap 10 | . 7 3 Drop 5 | 1 4 . Fire 64 | 12 38 14 Melee . | . . . Ram . | . . . Kick . | . . . Crush . | . . . Escape Stasis . | . . . Rewire . | . . . Trap . | . . . Miscellaneous . | . . . Route ------- -11/Scrapyard -10/Materials (discovered 3 exits: [*Mat] / *Min x2) -10/Mines History --------- Turn | Location | Event 3 | -11/Scrapyard | Discovered new exit (range 15) 162 | -11/Scrapyard | Entered Materials 310 | -10/Materials | Build established: Mutant 425 | -10/Materials | Identified exit to Mines 703 | -10/Materials | Discovered new exit (range 10) 999 | -10/Materials | Core integrity fell below 50% 1265 | -10/Materials | Entered Mines 1302 | -10/Mines | Met a Derelict bent on vengeance 1316 | -10/Mines | Assembled infested the area 1326 | -10/Mines | Core integrity fell below 20% 1329 | -10/Mines | Destroyed by D-53 Grenadier with Mini Grenade Launcher Last Messages --------------- 01300_ Acquired Aluminum Leg. 01309_ G-47 Trooper destroyed. 01309_ G-34 Mercenary destroyed. 01315_ K-01 Serf collects debris. 01316_ ALERT: Infestation in the mines, dispatching Demolisher response squad. 01316_ R-06 Scavenger collects Ion Engine. 01318_ Acquired Aluminum Leg. 01318_ K-01 Serf collects debris. 01319_ Acquired 20 matter. 01320_ The unstable cave ceiling collapses. 01321_ Acquired 10 matter. 01321_ K-01 Serf collects debris. 01321_ R-06 Scavenger destroyed. 01321_ K-01 Serf destroyed. 01325_ C-45 Heavy ARC bursts open, deploying its payload. 01325_ D-53 Grenadier unfolds itself. 01326_ Ion Engine destroyed. 01328_ The unstable cave ceiling collapses. Map ----- +----------------------------------------------------+ | ?????????????????????????????????????????? | | ?????????????????????????????????????????? | | ?????????????????????????????????????????? | | ?????????????????????????????????????????? | | ?????????????????????????????????????????? | | ?????????????????????????????????????????? | | ?????????????????????????????????????????? | | ?????????????????????????????????????????? | | ?????????????????????????????????????????? | | ?????????????????????????????????????????? | | ?????????????????????????????????????????? | | ?????????????????????????????????????????? | | ?????????????????????????????????????????? | | ?????????????????????????????????????????? | | ?????????????????????????????????????????? | | ?????????????????????????????????????????? | | ?????????????????????????????????????????? | | ?????????????????????????????????????????? | | ?????????????????????????????????????????? | | ?????????????????????????????????????????? | | ?????????????????????????????????????????? | | ?????????????#########???????????????????? | | ??????????#??# #########???????????? | | ?????????## =# # % % #???????????? | | ?????????# !% d! # #???????????? | | ?????????# ==%d @ #???????????? | | ?????????# *# #== ## #???????????? | | ?????????????# #### ###???????????? | | ?????????????# ##??# #?????????????? | | ?????????????### ####???# ?????????????? | | ???????????????# #??????####????????????? | | ??????????????? #??????????????????????? | | ??????????????? #??????????????????????? | | ??????????????? ##??????????????????????? | | ?????????????? #????????????????????????? | | ??????????????##?????????????????????????? | | ?????????????????????????????????????????? | | ?????????????????????????????????????????? | | ?????????????????????????????????????????? | | ?????????????????????????????????????????? | | ?????????????????????????????????????????? | | | | | | | | | | | | | | | | | | | +----------------------------------------------------+ Best States ------------- Heat Dissipation 39 Energy Generation 10 Energy Capacity 250 Matter Stores 300 Matter Capacity 300 Sight Range 16 Terrain Scan Range 16 Terrain Scan Density 10 Evasion (%) 40 Recoil Reduction 2 Item Schematics ----------------- None Robot Schematics ------------------ None Fabricated ------------ Nothing Repaired ---------- Nothing Studied --------- None Alien Tech Used ----------------- None Achievements -------------- None Challenges ------------ None Game ------ Seed LightIntegrityWings Manual? 0 Play Time 00:10:47 Cumulative 67.4 hours Start 2026.06.29 @ 01:07:01 End 2026.06.29 @ 01:17:50 Sessions 1 Manual Loads 0 Difficulty Rogue Special Mode None Game No. 78 Rogue 24 Adventurer 54 Explorer 0 Win Type - Total 1 Types 1/0/0/0/0/0/0/0/0/0 Lore% 32 Gallery% 40 Achievement% 38 Wizard Run 0 Options --------- Layout 1 ASCII 0 Keyboard 0 Movement Mouse Keybinds 1 Fullscreen 1 Font 24/Terminus Map View 50x35 Zoom Use 0% Tactical HUD 1 Map Filters NONE Filters NONE Steam 1 RUN: fbe37b1f-b4a4-4480-954b-e7915a413edd